[Event "SVK ECo-C Extraliga 2021-22"]
[Site "Slovakia"]
[Date "2022.06.10"]
[Round "9.4"]
[White "Bures, Jaroslav"]
[Black "Borhy, Marcell"]
[Result "1/2-1/2"]
[ECO "E47"]
[WhiteElo "2411"]
[BlackElo "2381"]
[Annotator "TA"]
[PlyCount "37"]
[EventDate "2021.10.21"]
[EventType "team-tourn"]
[EventCountry "SVK"]
[SourceTitle "playchess.com"]
[Source "ChessBase"]
[SourceQuality "1"]
[TimeControl "40/5400+30:1800+30"]

{[%evp 26,37,0,0,29,38,43,4,30,26,27,30,26,18]} 1. d4 {[%emt 0:00:23] Wells,P} Nf6 {[%emt 0:00:09]} 2. c4 {[%emt 0:00:02]} e6 {[%emt 0:00:08]} 3. Nc3 {[%emt 0:00:07]} Bb4 {[%emt 0:00:06]} 4. e3 {[%emt 0:00:03]} O-O {[%emt 0:00:08]} 5. Bd3 {[%emt 0:00:34]} c5 {[%emt 0:00:08]} 6. Nge2 {[%emt 0:00:14]} d5 {[%emt 0:00:07]} 7. cxd5 {[%emt 0:00:10]} cxd4 {[%emt 0:00:05]} 8. exd4 {[%emt 0:00:03]} Nxd5 {[%emt 0:00:07]} 9. O-O {[%emt 0:00:12]} Nc6 {[%emt 0:00:07]} 10. Nxd5 {[%emt 0:00:20]} Qxd5 {[%emt 0:00:46]} 11. Be3 {[%emt 0:05:24]} Qh5 {[%emt 0:07:39]} 12. Nf4 {[%emt 0:06:00]} Qxd1 {[%emt 0:00:13]} 13. Rfxd1 {[%emt 0:00:01]} Rd8 {[%emt 0:00:14]} 14. Be4 {[%emt 0:04:33]} Bd6 {[%emt 0:01:18] E41: Nimzo-Indian: Rubinstein: 4...c5 5 Bd3, including Hübner Variation.} 15. d5 {[%emt 0:13:10]} exd5 {[%emt 0:01:29] [#]} 16. Bxd5 $146 {[%emt 0:21:41]} ({Predecessor:} 16. Rxd5 Bg4 17. f3 Bxf4 18. Bxf4 Rxd5 19. Bxd5 Be6 20. Bxe6 fxe6 21. Rd1 Rd8 22. Rxd8+ Nxd8 {1-0 (76) Milov,V (2626)-Macieja,B (2542) Las Vegas 1999 CBM 072 [Wells,P]}) 16... Bg4 {[%emt 0:07:47]} 17. f3 {[%emt 0:01:04] White has an edge.} Bxf4 {[%emt 0:00:11]} 18. Bxf4 {[%emt 0:00:13]} Be6 {[%emt 0:00:07]} 19. Bxc6 {Weighted Error Value: White=0.15 (very precise) /Black=0.11 (very precise)} 1/2-1/2

[Event "SVK ECo-C Extraliga 2021-22"]
[Site "Slovakia"]
[Date "2022.06.10"]
[Round "9.4"]
[White "Turcan, Richard"]
[Black "Mikrut, Dariusz"]
[Result "0-1"]
[ECO "B90"]
[WhiteElo "2306"]
[BlackElo "2349"]
[Annotator "TA"]
[PlyCount "138"]
[EventDate "2021.10.21"]
[EventType "team-tourn"]
[EventCountry "SVK"]
[SourceTitle "playchess.com"]
[Source "ChessBase"]
[SourceQuality "1"]
[TimeControl "40/5400+30:1800+30"]

{[%evp 20,138,24,13,1,0,0,0,24,15,64,0,60,21,27,21,28,28,35,18,17,2,3,0,11,-17,0,-7,-8,-43,-70,-44,-11,-79,-68,-73,-58,-69,-60,-106,-119,-95,-78,-86,-54,-50,-45,-55,0,0,0,-52,-52,-78,-78,-78,-78,-78,-43,-78,-78,-78,-61,-78,-75,-78,-78,-784,-6,-124,-78,-29941,-10331,-29954,-29955,-29952,-29955,-29956,-78,-78,0,-29952,-29956,-29956,-29957,-29968,-29969,-29971,-29971,-29972,-15,-29969,-29968,-29965,-15,-25,-49,-29960,0,-8,0,-29972,-29971,-29970,0,-78,0,-29970,-29973,-29975,-29976,-29977,-29978,-29978,-29978,-29979,-29980,-29979,-29981,-29981,-29978]} 1. e4 {[%emt 0:00:05]} c5 {[%emt 0:00:36]} 2. Nf3 {[%emt 0:00:33]} d6 {[%emt 0:00:38]} 3. d4 {[%emt 0:00:18]} cxd4 {[%emt 0:00:07]} 4. Nxd4 {[%emt 0:00:08]} Nf6 {[%emt 0:00:05]} 5. Nc3 {[%emt 0:00:09]} a6 {[%emt 0:00:10]} 6. h3 {[%emt 0:00:30]} e5 {[%emt 0:00:15]} 7. Nde2 {[%emt 0:00:07]} b5 {[%emt 0:03:33]} 8. g4 {[%emt 0:02:10]} b4 {[%emt 0:00:39]} 9. Nd5 {[%emt 0:00:50]} Nxd5 {[%emt 0:00:24]} 10. exd5 {[%emt 0:01:17]} Be7 {[%emt 0:03:49]} 11. Bg2 {[%emt 0:04:16]} Bg5 {[%emt 0:07:34]} 12. Ng3 {[%emt 0:15:25]} O-O {[%emt 0:01:54]} 13. O-O {[%emt 0:02:31]} a5 {[%emt 0:00:13]} 14. a3 {[%emt 0:07:25]} Na6 {[%emt 0:10:22]} (14... Ra6 $11 {is more appropriate.}) 15. axb4 {[%emt 0:10:32]} (15. Bxg5 $14 Qxg5 16. axb4) 15... axb4 {[%emt 0:00:11]} (15... Bxc1 $11 16. Qxc1 Nxb4) 16. f4 {[%emt 0:04:10]} Bxf4 {[%emt 0:02:03]} 17. Bxf4 {[%emt 0:00:55]} exf4 {[%emt 0:00:06]} 18. Rxf4 {[%emt 0:00:14]} Rb8 {[%emt 0:03:54]} 19. Qd2 {[%emt 0:08:54]} b3 {[%emt 0:00:27]} 20. c3 {[%emt 0:00:49]} Nc5 {[%emt 0:00:33]} 21. Raf1 {[%emt 0:03:04]} Rb7 22. Be4 {[%emt 0:23:17]} Re7 {[%emt 0:05:04]} 23. Bb1 {[%emt 0:04:08]} Re5 {[%emt 0:00:24]} 24. Ne4 {[%emt 0:03:04]} Nxe4 {[%emt 0:03:07]} 25. Rxe4 {[%emt 0:00:16]} Rfe8 {[%emt 0:00:32]} 26. Rfe1 {[%emt 0:02:31]} (26. Qf4 $1 $11 f6 27. Rxe5 Rxe5 28. Bd3) 26... Qh4 $17 {[%emt 0:13:45]} 27. Rxe5 {[%emt 0:03:55]} Rxe5 {[%emt 0:00:16]} 28. Rxe5 {[%emt 0:01:13]} Qg3+ {[%emt 0:00:08]} 29. Qg2 {[%emt 0:00:11]} (29. Kf1 $1 $15 {is superior.} dxe5 30. Qd3 Qf4+ 31. Kg2) 29... Qxe5 $17 {[%emt 0:07:05]} 30. Be4 {[%emt 0:00:10]} g6 {[%emt 0:03:40]} 31. Qf3 {[%emt 0:01:42]} Kg7 {[%emt 0:00:27]} 32. Kg2 {[%emt 0:00:40]} Bb7 33. Qd3 {[%emt 0:00:24]} h6 {[%emt 0:15:15]} (33... h5 $15) 34. Bf3 $11 {[%emt 0:01:01]} Qf4 {[%emt 0:07:13]} 35. Qd1 {[%emt 0:00:32]} (35. c4 $11) 35... Ba6 $1 $15 {[%emt 0:00:40]} 36. Kf2 {[%emt 0:00:31]} Bc4 {[%emt 0:03:53]} 37. Qd4+ {[%emt 0:00:25]} Qxd4+ {[%emt 0:01:36]} 38. cxd4 {[%emt 0:00:02]} Bd3 {[%emt 0:00:43]} 39. Bd1 {[%emt 0:00:29]} Bc2 $1 {[%emt 0:00:08]} 40. Bf3 {[%emt 0:00:53]} f5 {[%emt 0:00:35]} 41. gxf5 {[%emt 0:05:18]} Bxf5 {[%emt 0:00:00]} 42. h4 {[%emt 0:01:20]} Kf6 {[%emt 0:00:23]} 43. Ke3 $2 {[%emt 0:04:48][%mdl 8192]} (43. Kg3 $17) 43... Bc2 $2 {[%emt 0:00:06]} (43... g5 $19 44. hxg5+ Kxg5) 44. Bg4 {[%emt 0:00:52]} (44. Kf4 $1 $11) 44... h5 {[%emt 0:07:12]} ({Black should play} 44... g5 $1 {[%cal Rg5h4]} 45. h5 Kf7) 45. Bd7 $2 {[%emt 0:02:19][%mdl 8192]} (45. Be2 $17) 45... g5 {[%emt 0:01:05]} 46. hxg5+ {[%emt 0:00:13]} Kxg5 {[%emt 0:00:06]} 47. Kf3 {[%emt 0:04:45]} Bd1+ $1 {[%emt 0:00:50]} 48. Kg3 {[%emt 0:00:55]} Bg4 $2 {[%emt 0:05:54]} (48... h4+ $1 49. Kg2 Be2 50. Bc6 Kg4 51. Bd7+ Kf4 52. Kh3 Kg5 53. Kg2 Bc4 54. Kf3 Bxd5+ 55. Ke3 Bg2 56. Kf2 Be4 57. Ke3 Bf5 58. Ba4 Be6 59. Kf3 Bd5+ 60. Kf2 Kf4 61. Bd7 Ke4 62. Bc8 Kxd4 63. Ke2 Ke4 64. Bd7 Bc4+ 65. Kf2 Kd3 66. Bf5+ Kd2 67. Kf3 Kc1 68. Bh7 Kxb2 69. Kg4 Kc3 70. Kxh4 d5 71. Kh5 d4 72. Kh6 b2 73. Bb1 d3 74. Kg5 d2 75. Bh7 d1=Q 76. Bf5 Qd8+ 77. Kh5 Qf6 78. Kg4 Be2+ 79. Kh3 Qxf5+ 80. Kh2 b1=Q 81. Kg3 Qf3+ 82. Kh4 Qg4#) 49. Ba4 $17 {[%emt 0:00:45]} (49. Bxg4 {is a self mate.} hxg4 50. Kg2 Kf4 51. Kh2 Ke4 52. Kg2 Kxd5 53. Kg3 Kxd4 54. Kxg4 Ke4 55. Kg3 Ke3 56. Kh3 Ke2 57. Kg3 d5 58. Kh4 d4 59. Kh5 Ke3 60. Kg6 d3 61. Kg7 Kf4 62. Kh7 d2 63. Kg6 d1=Q 64. Kf7 Kf5 65. Ke7 Qd4 66. Kf8 Qd7 67. Kg8 Kf6 68. Kh8 Qg7#) 49... Bd1 $2 {[%emt 0:01:08][%mdl 8192]} (49... h4+ $17 50. Kh2 Bd1) 50. Bd7 {[%emt 0:00:30]} h4+ $1 {[%emt 0:00:31]} 51. Kg2 {[%emt 0:01:01] [#]} Be2 $1 {[%emt 0:01:56]} 52. Ba4 {[%emt 0:04:35]} Bc4 {[%emt 0:01:20]} 53. Bc6 {[%emt 0:00:05]} Kg4 {[%emt 0:06:06]} 54. Kh2 {[%emt 0:02:31]} Bd3 $2 {[%emt 0:02:49]} (54... Kf3 55. Kh3 Ke4 56. Kxh4 Bxd5 57. Bd7 Kxd4 58. Bf5 Ke3 59. Kg5 Kd2 60. Kf4 Kc1 61. Ke3 Kxb2 62. Kd4 Bc6 63. Bh7 Kc1 64. Ke3 b2 65. Bg6 Ba4 66. Bh7 Bc2 67. Bg8 b1=Q 68. Be6 Qb2 69. Bc4 Qc3+ 70. Kf4 Qxc4+ 71. Kg5 Qf1 72. Kh5 Qg2 73. Kh4 Bf5 74. Kh5 Qg6+ 75. Kh4 Qg4#) 55. Kg2 $2 {[%emt 0:02:20][%mdl 8192]} (55. Ba4 $11) 55... Be4+ {[%emt 0:00:07]} 56. Kh2 {[%emt 0:00:06]} Bf5 $2 {[%emt 0:07:36]} (56... Bf3 57. Bb7 Be4 58. Bc6 Bd3 59. Bd7+ Kf4 60. Bh3 Bc4 61. Bg2 Ke3 62. Kg1 Kxd4 63. Kf2 Bxd5 64. Bf1 Ke4 65. Ba6 Kf4 66. Bf1 Ke4 67. Ke1 Kf3 68. Kd2 Kf2 69. Bh3 Kg3 70. Bf5 h3 71. Bxh3 Kxh3 72. Ke2 Kg4 73. Kd3 Kf4 74. Kd4 Bg8 75. Kd3 Ke5 76. Kc3 Ke4 77. Kb4 Ke3 78. Kc3 d5 79. Kxb3 d4+ 80. Kc2 d3+ 81. Kc3 d2 82. Kc2 Ke2 83. Kc3 d1=Q 84. Kb4 Qd6+ 85. Ka5 Bc4 86. Ka4 Qb6 87. b3 Qb5+ 88. Ka3 Qxb3#) 57. Ba4 $11 {[%emt 0:01:12]} Bc2 {[%emt 0:00:03]} 58. Bc6 $2 {[%emt 0:00:13][%mdl 8192] [#]} (58. Bb5 $15) 58... Bd3 $2 {[%emt 0:01:10]} (58... Be4 $1 59. Be8 Bxd5 60. Ba4 Kf4 61. Kh3 Ke3 62. Kxh4 Kxd4 63. Bb5 Bc4 64. Be8 Kd3 65. Kh5 Kc2 66. Kg4 Kxb2 67. Kh5 Kc3 68. Kh6 d5 69. Bg6 d4 70. Kh5 d3 71. Kg5 b2 72. Be4 b1=Q 73. Kg6 Qg1+ 74. Kf5 Qf2+ 75. Kg4 d2 76. Bf3 Be6+ 77. Kf4 d1=Q 78. Ke5 Qe3+ 79. Be4 Qd5+ 80. Kf6 Qeg5#) 59. Ba4 {[%emt 0:02:40]} Bc4 $2 {[%emt 0:00:08][%mdl 8192]} (59... Kf4 $11 60. Bxb3 Bf5) 60. Bc6 $1 {[%emt 0:00:33]} Kf4 {[%emt 0:00:12]} 61. Kh3 {[%emt 0:00:19]} Kg5 $2 {[%emt 0:00:24]} (61... Ke4 {mates} 62. Kxh4 Bxd5 63. Be8 Kxd4 64. Kg5 Kd3 65. Kf6 Be4 66. Bh5 Kc2 67. Bg4 Kxb2 68. Bh3 Kc3 69. Ke6 d5 70. Ke5 b2 71. Kf6 b1=Q 72. Be6 Qb6 73. Ke7 d4 74. Kd7 d3 75. Bg4 Qc6+ 76. Ke7 Qc7+ 77. Kf6 Qf4+ 78. Ke6 Qxg4+ 79. Ke7 Qg5+ 80. Ke8 d2 81. Kf7 d1=Q 82. Ke8 Qgd8+ 83. Kf7 Q1d7#) 62. Kg2 $17 {[%emt 0:00:36]} Kf4 $2 {[%emt 0:00:35][%mdl 8192]} (62... Bd3 $17 63. Kf3 Bc4) 63. Kh3 {[%emt 0:00:05]} Ke4 {[%emt 0:00:11]} 64. Kxh4 {[%emt 0:00:07]} Bxd5 {[%emt 0:00:05]} 65. Ba4 {[%emt 0:01:59]} Kxd4 {[%emt 0:00:37]} 66. Kg5 {[%emt 0:00:51]} Bc4 {[%emt 0:00:36]} 67. Kf6 {[%emt 0:01:49]} Kd3 {[%emt 0:00:14]} 68. Ke7 {[%emt 0:00:06]} d5 {[%emt 0:00:04]} 69. Kd6 {[%emt 0:00:05]} Kc2 {[%emt 0:00:11]} 0-1

[Event "SVK ECo-C Extraliga 2021-22"]
[Site "Slovakia"]
[Date "2022.06.10"]
[Round "9.4"]
[White "Chlpik, Martin"]
[Black "Pcola, Pavol"]
[Result "1-0"]
[ECO "D00"]
[WhiteElo "2225"]
[BlackElo "2379"]
[Annotator "TA"]
[PlyCount "58"]
[EventDate "2021.10.21"]
[EventType "team-tourn"]
[EventCountry "SVK"]
[SourceTitle "playchess.com"]
[Source "ChessBase"]
[SourceQuality "1"]
[TimeControl "40/5400+30:1800+30"]

{[%evp 9,58,16,35,34,89,75,85,77,66,62,154,128,127,85,92,63,62,51,50,40,139,7,13,-19,0,-18,-19,-15,-22,-32,24,-83,-75,-85,-72,-83,58,58,55,50,61,58,34,34,25,0,429,445,426,421,410]} 1. d4 {[%emt 0:00:05]} d5 {[%emt 0:00:06]} 2. Nc3 {[%emt 0:00:04]} Nf6 {[%emt 0:06:18]} 3. Bf4 {[%emt 0:00:05]} e6 {[%emt 0:02:03]} 4. e3 {[%emt 0:03:18]} Be7 {[%emt 0:03:29]} 5. g4 {[%emt 0:07:14]} h6 {[%emt 0:02:02] [#]} 6. Qf3 $146 {[%emt 0:00:33] D00: 1 d4 d5: Unusual lines.} ({Predecessor:} 6. h4 c5 7. dxc5 Nbd7 8. Bg2 Nxc5 9. g5 Nfe4 10. Nxe4 Nxe4 11. Bxe4 Qa5+ 12. c3 dxe4 13. gxh6 gxh6 {1-0 (76) Chan,K (2303)-Gago Padreny,I (2247) Chess.com INT 2021}) 6... b6 {[%emt 0:14:10]} (6... c5 $14) 7. O-O-O {[%emt 0:12:19]} Bb7 {[%emt 0:02:10]} 8. Bd3 {[%emt 0:04:43] White is better.} Na6 {[%emt 0:02:52]} 9. a3 {[%emt 0:03:06] Prevents Nb4.} c5 {[%emt 0:05:38]} ({Black should try} 9... c6 $14) 10. h4 $1 $16 {[%emt 0:01:44]} Nd7 {[%emt 0:19:12]} 11. Nge2 {[%emt 0:12:36][%cal Og4g5]} Rc8 {[%emt 0:05:20] And now ...c4 would win.} 12. Bb5 {[%emt 0:03:23][%cal Og4g5]} Nab8 {[%emt 0:07:17]} 13. Bxb8 {[%emt 0:04:36] 0x0.001b68284168dp-1022s more active pieces.} Rxb8 {[%emt 0:00:12]} 14. g5 {[%emt 0:00:05]} Bd6 {[%emt 0:09:01]} (14... a6 $14 15. Bxd7+ Qxd7) 15. Nf4 {[%emt 0:07:32]} (15. e4 $1 $16 {[%cal Re4d5]}) 15... a6 $11 {[%emt 0:05:00]} 16. Bd3 {[%emt 0:13:07][%cal Of4e6] Strongly threatening Nxe6!} ({Reject} 16. dxc5 bxc5 17. Ba4 Qc7 $15) (16. Bxd7+ $5 Kxd7 17. Nd3 $11) 16... Qe7 {[%emt 0:02:08]} (16... hxg5 $2 17. Nxe6 $1 Qf6 18. Qxf6 (18. Nxg5 cxd4 19. exd4 Qxf3 $14) 18... gxf6 19. Ng7+ Kd8 20. h5 $16) 17. Rhg1 {[%emt 0:08:16]} c4 {[%emt 0:02:04] Hoping for ...hxg5.} 18. Be2 {[%emt 0:00:09]} hxg5 {[%emt 0:01:15]} 19. hxg5 {[%emt 0:01:29]} Kd8 {[%emt 0:01:14]} ({Black should play} 19... b5 $15) 20. g6 {[%emt 0:00:43] [#]} (20. e4 $11 {remains equal.}) 20... f5 $1 $17 {[%emt 0:00:18]} 21. Rh1 {[%emt 0:00:19]} Rxh1 {[%emt 0:04:40]} 22. Rxh1 {[%emt 0:00:04][%cal Bd1h1,Bh1h7,Bh7g7,Bg7f7,Bf7f6][%mdl 32] [#]} Qf6 {[%emt 0:00:24]} (22... Nf6 $1 $17) 23. Rh7 $1 $36 {[%emt 0:02:12][%mdl 2048] White has good play.} Nf8 {[%emt 0:00:42]} 24. Nh5 {[%emt 0:00:33][%csl LRf6,LRg7] Pair of Knights!} Qxg6 {[%emt 0:01:04]} 25. Rxg7 {[%emt 0:00:06]} Qh6 {[%emt 0:00:21]} 26. Qg2 {[%emt 0:04:27] Rf7 is the strong threat.} Bc6 {[%emt 0:01:17]} 27. Rf7 {[%emt 0:03:07] aiming for Rf6.} Be8 $2 {[%emt 0:01:05][%mdl 8192]} (27... Rb7 $11 {and Black has nothing to worry.} 28. Rxb7 Bxb7) 28. Rf6 $18 {[%emt 0:00:13]} Qh8 {[%emt 0:00:15]} 29. Ng7 {[%emt 0:00:38]} Kd7 {[%emt 0:01:32] Weighted Error Value: White=0.18 (very precise) /Black=0.45} 1-0

[Event "SVK ECo-C Extraliga 2021-22"]
[Site "Slovakia"]
[Date "2022.06.10"]
[Round "9.4"]
[White "Gasa, Patrik"]
[Black "Stohl, Igor"]
[Result "1/2-1/2"]
[ECO "E17"]
[WhiteElo "2178"]
[BlackElo "2452"]
[Annotator "TA"]
[PlyCount "34"]
[EventDate "2021.10.21"]
[EventType "team-tourn"]
[EventCountry "SVK"]
[SourceTitle "playchess.com"]
[Source "ChessBase"]
[SourceQuality "1"]
[TimeControl "40/5400+30:1800+30"]

{[%evp 25,34,8,10,11,30,22,25,11,6,5,4]} 1. d4 {[%emt 0:00:06]} Nf6 {[%emt 0:00:23]} 2. Nf3 {[%emt 0:00:05]} e6 {[%emt 0:00:45]} 3. g3 {[%emt 0:01:38]} b6 {[%emt 0:01:53]} 4. Bg2 {[%emt 0:00:05]} Bb7 {[%emt 0:00:02]} 5. O-O {[%emt 0:00:07]} c5 {[%emt 0:00:42]} 6. e3 {[%emt 0:04:52]} d5 {[%emt 0:03:25]} 7. b3 {[%emt 0:01:26]} Nbd7 {[%emt 0:07:05]} 8. Bb2 {[%emt 0:00:09]} Be7 {[%emt 0:00:10]} 9. Nbd2 {[%emt 0:00:40]} O-O {[%emt 0:00:14]} 10. c4 {[%emt 0:00:41]} dxc4 {[%emt 0:02:42]} 11. Nxc4 {[%emt 0:00:12]} Rc8 {[%emt 0:05:13]} 12. Rc1 {[%emt 0:01:51]} b5 {[%emt 0:02:26]} 13. Nce5 {[%emt 0:03:05]} Nxe5 {[%emt 0:02:01]} 14. Nxe5 {[%emt 0:00:32] [#] E17: Queen's Indian: 4 g3 Bb7 5 Bg2 Be7.} Qb6 $146 {[%emt 0:08:17]} ({Predecessor:} 14... Bxg2 15. Kxg2 Qd5+ 16. Qf3 c4 17. bxc4 bxc4 18. Rc2 Rc7 19. Re1 Ne4 20. Nxc4 Rxc4 21. Rxc4 Qxc4 22. Qxe4 Qxa2 {½-½ (91) Nakamura,H (2736)-Oparin,G (2650) Chess.com INT 2020}) 15. dxc5 {[%emt 0:07:59]} Bxc5 {[%emt 0:00:43]} 16. Bxb7 {[%emt 0:00:12]} Qxb7 {[%emt 0:00:02]} 17. Qf3 {[%emt 0:03:21]} Qxf3 {[%emt 0:02:04] An even fight not without its subleties.  Weighted Error Value: White=0.05 (flawless) /Black=0.07 (flawless)} 1/2-1/2

[Event "SVK ECo-C Extraliga 2021-22"]
[Site "Slovakia"]
[Date "2022.06.10"]
[Round "9.5"]
[White "Nagy, Gabor"]
[Black "Istona, Martin"]
[Result "1-0"]
[ECO "E51"]
[WhiteElo "2503"]
[BlackElo "2216"]
[Annotator "TA"]
[PlyCount "47"]
[EventDate "2021.10.21"]
[EventType "team-tourn"]
[EventCountry "SVK"]
[SourceTitle "playchess.com"]
[Source "ChessBase"]
[SourceQuality "1"]
[TimeControl "40/5400+30:1800+30"]

{[%evp 13,47,-10,0,-9,0,0,20,0,0,0,0,0,5,8,23,20,49,42,78,79,116,125,210,220,191,208,237,211,214,204,220,170,183,176,268,262]} 1. d4 {[%emt 0:00:08]} Nf6 {[%emt 0:04:08]} 2. c4 {[%emt 0:00:32]} e6 {[%emt 0:00:32]} 3. Nc3 {[%emt 0:01:02]} d5 {[%emt 0:00:23]} 4. Nf3 {[%emt 0:00:32]} Bb4 {[%emt 0:01:58]} 5. e3 {[%emt 0:04:01]} O-O {[%emt 0:01:35]} 6. Bd2 {[%emt 0:00:37]} b6 {[%emt 0:00:54]} 7. cxd5 {[%emt 0:02:11]} exd5 {[%emt 0:00:07]} 8. Rc1 {[%emt 0:00:28] E51: Nimzo-Indian: Rubinstein: 4...0-0 5 Nf3 d5.} a6 {[%emt 0:03:32]} 9. Bd3 {[%emt 0:00:53]} Bb7 {[%emt 0:02:23]} 10. O-O {[%emt 0:00:41] The position is equal.} Nbd7 {[%emt 0:03:58]} 11. Ne5 {[%emt 0:03:54]} Nxe5 {[%emt 0:08:43]} 12. dxe5 {[%emt 0:00:26]} Nd7 {[%emt 0:00:08]} 13. Qc2 $36 {[%emt 0:13:46][%mdl 2048] [#] White is pushing.} (13. Qh5 g6 14. Qh3 Nxe5 $17) 13... g6 $146 {[%emt 0:17:43]} ({Predecessor:} 13... Nxe5 14. Bxh7+ Kh8 15. f4 g6 16. fxe5 Kxh7 17. Ne4 Bxd2 18. Nf6+ Kg7 19. Qxd2 Qe7 {0-1 (54) Heinola,V (2278)-Agopov,M (2444) Helsinki 2022}) 14. f4 {[%emt 0:10:37]} Re8 {[%emt 0:14:40]} 15. Be1 {[%emt 0:05:59]} Bf8 {[%emt 0:07:06]} 16. Rd1 {[%emt 0:01:25]} Qe7 {[%emt 0:24:08]} 17. e4 {[%emt 0:01:41][%cal Be3e4,Be4d5][%mdl 32] White is more active.} d4 {[%emt 0:01:24]} (17... c6 $16) 18. Nd5 $18 {[%emt 0:00:23]} Bxd5 {[%emt 0:02:29]} 19. exd5 {[%emt 0:00:13]} Qc5 {[%emt 0:00:36]} 20. Bf2 {[%emt 0:01:29]} Rad8 {[%emt 0:01:17]} 21. Qb3 {[%emt 0:01:18]} b5 {[%emt 0:02:24]} 22. Bb1 {[%emt 0:03:01]} Nb6 {[%emt 0:00:43]} 23. Be4 {[%emt 0:01:07]} (23. Rxd4 $6 Rxd5 24. Re4 Qc6 $16) ({But not} 23. Bxd4 $6 Qxd5 24. Qc2 Qc4 $14) 23... Nxd5 {[%emt 0:00:35]} (23... Qb4 $142) 24. Rc1 {[%emt 0:00:32][%mdl 64] Deflection.  Weighted Error Value: White=0.07 (flawless) /Black=0.23 (precise)} ({Much less strong is} 24. Rxd4 $6 c6 25. Rxd5 cxd5 $18) ({Not} 24. Bxd4 Qc4 $14) 1-0

[Event "SVK ECo-C Extraliga 2021-22"]
[Site "Slovakia"]
[Date "2022.06.10"]
[Round "9.5"]
[White "Varga, Zoltan"]
[Black "Mikes, Jan"]
[Result "1/2-1/2"]
[ECO "E81"]
[WhiteElo "2390"]
[BlackElo "2349"]
[Annotator "TA"]
[PlyCount "86"]
[EventDate "2021.10.21"]
[EventType "team-tourn"]
[EventCountry "SVK"]
[SourceTitle "playchess.com"]
[Source "ChessBase"]
[SourceQuality "1"]
[TimeControl "40/5400+30:1800+30"]

{[%evp 18,86,12,11,33,15,20,27,18,29,22,30,26,10,0,-4,62,0,0,0,0,0,0,0,0,0,0,0,0,0,33,0,48,-12,26,19,21,52,115,124,120,116,106,119,101,149,148,102,248,230,211,219,221,80,80,80,80,80,80,80,80,80,80,0,0,0,0,0,0,0,0]} 1. c4 {[%emt 0:00:11]} Nf6 {[%emt 0:00:10]} 2. d4 {[%emt 0:00:10]} g6 {[%emt 0:00:13]} 3. Nc3 {[%emt 0:03:21]} Bg7 {[%emt 0:00:20]} 4. e4 {[%emt 0:00:06]} d6 {[%emt 0:00:04]} 5. f3 {[%emt 0:00:26]} O-O {[%emt 0:00:11]} 6. Be3 {[%emt 0:00:09][%cal Bc1e3,Be3c5,Bc5e7][%mdl 32]} c5 {[%emt 0:00:24]} 7. dxc5 {[%emt 0:00:10]} dxc5 {[%emt 0:00:12]} 8. Qxd8 {[%emt 0:00:03]} Rxd8 {[%emt 0:00:05]} 9. Bxc5 {[%emt 0:00:03]} Nc6 {[%emt 0:00:32]} 10. Nd5 {[%emt 0:05:02]} e6 {[%emt 0:08:15] E81: King's Indian: Sämisch: 6th move deviations (including 6 Be3 c6).} 11. Ne7+ {[%emt 0:07:17]} Nxe7 {[%emt 0:00:06]} 12. Bxe7 {[%emt 0:00:03]} Rd7 {[%emt 0:00:53] White has an edge.} 13. Ba3 {[%emt 0:00:07]} b6 {[%emt 0:00:23]} 14. Nh3 {[%emt 0:03:55]} Ba6 {[%emt 0:03:31] [#]} 15. c5 $146 {[%emt 0:03:23]} ({Predecessor:} 15. e5 Ne8 16. f4 f6 17. Rd1 Rxd1+ 18. Kxd1 fxe5 19. Kc2 Rc8 20. Kb3 Nf6 21. Bd3 {0-1 (38) Karpov,A (2651)-Nakamura,H (2704) Cap d'Agde 2008}) 15... Bxf1 {[%emt 0:00:35]} 16. Rxf1 {[%emt 0:01:32]} bxc5 {[%emt 0:00:45]} (16... b5 $11) 17. Ke2 {[%emt 0:00:52]} (17. Bxc5 $14 Rb8 18. Rb1) 17... Rb7 $11 {[%emt 0:03:00]} 18. Rac1 {[%emt 0:01:25]} Nd7 {[%emt 0:00:54]} 19. Rc2 {[%emt 0:02:45]} Bd4 {[%emt 0:04:40]} 20. Rd1 {[%emt 0:00:28]} e5 {[%emt 0:07:13]} 21. Nf2 {[%emt 0:01:53]} f5 {[%emt 0:02:07]} 22. exf5 {[%emt 0:04:11]} gxf5 {[%emt 0:00:05]} 23. Nd3 {[%emt 0:00:36]} Rb5 {[%emt 0:10:44]} 24. b4 {[%emt 0:07:24][%cal Rb4c5]} c4 {[%emt 0:08:22] [#]} ({Resist} 24... cxb4 25. Nxb4 Re8 26. Nc6 $14) (24... Nf6 $11 {feels stronger.}) 25. Nf4 {[%emt 0:19:55]} a5 {[%emt 0:07:29]} 26. Ne6 $1 {[%emt 0:04:03] Threatens to win with Nc7.} axb4 {[%emt 0:02:27]} 27. Nc7 $1 {[%emt 0:00:58]} Rab8 {[%emt 0:26:00]} (27... Rxa3 $2 28. Nxb5 Re3+ 29. Kf1 $18) (27... Rbb8 $14 28. Bxb4 Ra7) 28. Nxb5 $16 {[%emt 0:00:51]} Rxb5 {[%emt 0:00:57]} 29. Rb1 $1 {[%emt 0:00:23]} b3 {[%emt 0:00:35]} 30. axb3 {[%emt 0:01:25]} cxb3 {[%emt 0:00:26]} (30... Rxb3 $2 31. Rxb3 cxb3 32. Rc7 $18) 31. Rc8+ {[%emt 0:05:51]} ({White should play} 31. Rc4) 31... Kf7 {[%emt 0:00:15]} 32. Kd3 {[%emt 0:00:17]} (32. Rc7 $142 Ke6 33. Rc6+ Kf7 34. Kd3) 32... b2 {[%emt 0:03:36]} (32... Rb7 $16) 33. Kc2 $18 {[%emt 0:04:43]} Nb6 {[%emt 0:00:04]} 34. Rc7+ {[%emt 0:00:14]} Ke6 {[#]} 35. Bxb2 {[%emt 0:11:38]} (35. Re7+ $1 $18 {and the rest is easy.} Kd5 36. Bxb2) 35... Nd5 $16 {[%emt 0:00:10]} 36. Rc6+ {[%emt 0:01:51]} ({Much worse is} 36. Rxh7 Ne3+ 37. Kd3 (37. Kc1 Rc5+ 38. Kd2 Nc4+ 39. Ke2 Nxb2 $17) 37... Rb3+ 38. Ke2 Nxg2 $11) 36... Kd7 {[%emt 0:00:05] [#]} 37. Bxd4 $1 {[%emt 0:00:08]} Kxc6 {[%emt 0:02:20]} 38. Rxb5 {[%emt 0:00:19]} Kxb5 {[%emt 0:00:03]} 39. Bxe5 {[%emt 0:00:04] KB-KN} Ne3+ {[%emt 0:00:35] [#]} 40. Kd3 {[%emt 0:01:55]} ({Better is} 40. Kc3 $1 $16) 40... Nxg2 $11 {[%emt 0:00:49] The position is equal.} 41. Kd4 {[%emt 0:35:23]} Nh4 {[%emt 0:31:17]} 42. Bg3 {[%emt 0:00:55]} Nxf3+ {[%emt 0:00:11]} 43. Ke3 {[%emt 0:00:03]} Nxh2 {[%emt 0:00:05] Weighted Error Value: White=0.15 (very precise) /Black=0.16 (very precise)} 1/2-1/2